bitfinex/quotes_SOLUSD_20250306
["timestamp","ask_amount","ask_price","bid_price","bid_amount"]
[1741275459063,49.16289048,149.38,149.33,7.66]
[1741275459262,49.16289048,149.38,149.35,312.0]
[1741275459649,49.16289048,149.37,149.36,0.14216157]
[1741275459859,0.03,149.39,149.36,6.83726157]
[1741275460270,0.03,149.39,149.38,0.14216157]
[1741275460596,0.03,149.39,149.38,100.09181043]
[1741275461302,0.03,149.39,149.38,81.44216157]
[1741275462302,0.03,149.39,149.38,106.78611043]
[1741275462695,0.03,149.39,149.38,156.23332405]
[1741275462871,0.03,149.39,149.38,419.07043357]
[1741275463369,0.03,149.39,149.38,412.37613357]
[1741275463570,0.03,149.39,149.38,393.44216157]
[1741275464602,0.03,149.39,149.38,393.3]
[1741275464805,0.03,149.39,149.38,399.9943]
[1741275464969,0.03,149.39,149.38,419.07043357]
[1741275465900,0.03,149.39,149.38,393.44216157]
[1741275466205,0.03,149.39,149.38,400.13646157]
[1741275466445,0.03,149.39,149.38,419.07043357]
[1741275466703,0.03,149.39,149.38,468.23332405]
[1741275466904,0.03,149.39,149.38,602.73332405]
[1741275467572,0.03,149.42,149.41,20.14216157]
[1741275467785,49.16289048,149.51,149.42,0.14216157]
[1741275467990,240.22,149.53,149.46,6.83286157]
[1741275467991,246.9077,149.53,149.46,6.83286157]
[1741275468192,49.16289048,149.51,149.46,6.83286157]
[1741275468422,49.16289048,149.5,149.46,0.14216157]
[1741275468595,246.9077,149.53,149.46,0.14216157]
[1741275468897,30.14177069,149.5,149.46,0.14216157]
[1741275469305,246.9077,149.53,149.46,0.14216157]
[1741275469626,30.14177069,149.5,149.46,0.14216157]
[1741275470414,30.14177069,149.5,149.46,6.83286157]
[1741275470601,30.14177069,149.51,149.48,0.14216157]
[1741275470790,240.22,149.53,149.48,0.14216157]
[1741275470791,30.14177069,149.5,149.48,0.14216157]
[1741275471318,30.14177069,149.51,149.47,0.14216157]
[1741275471489,189.56177069,149.53,149.47,130.51790426]
[1741275471690,0.03,149.54,149.49,18.79181043]
[1741275471904,30.14177069,149.53,149.49,0.14216157]
[1741275472105,6.688,149.52,149.49,0.14216157]
[1741275472318,30.14177069,149.51,149.48,0.14216157]
[1741275472686,30.14177069,149.5,149.48,0.14216157]
[1741275472891,30.14177069,149.49,149.47,0.14216157]
[1741275473320,30.14177069,149.48,149.44,81.3]
[1741275473819,30.14177069,149.47,149.45,312.14216157]
[1741275474123,30.14177069,149.47,149.45,312.0]
[1741275474318,30.14177069,149.46,149.45,312.0]
[1741275474692,30.14177069,149.46,149.45,312.14216157]
[1741275474898,30.14177069,149.46,149.41,81.3]
[1741275475114,30.14177069,149.44,149.42,0.14216157]
[1741275475304,6.6903,149.47,149.39,81.51324235]
[1741275475305,30.14177069,149.43,149.39,81.51324235]
[1741275475504,30.14177069,149.42,149.39,81.51324235]
[1741275475710,30.14177069,149.42,149.4,0.14216157]
[1741275476397,36.83447069,149.42,149.4,0.14216157]
[1741275476719,36.83447069,149.42,149.38,0.14216157]
[1741275476720,30.14177069,149.41,149.38,0.14216157]
[1741275477027,30.14177069,149.4,149.36,6.4303]
[1741275477198,30.14177069,149.4,149.37,0.14216157]
[1741275477393,6.6927,149.42,149.37,0.14216157]
[1741275477394,30.14177069,149.42,149.37,0.14216157]
[1741275477601,30.14177069,149.42,149.37,18.79181043]
[1741275478129,30.14177069,149.42,149.41,0.14216157]
[1741275478425,36.83427069,149.42,149.41,0.14216157]
[1741275478622,53.56557069,149.42,149.36,81.3]
[1741275478790,30.14177069,149.38,149.35,0.14216157]
[1741275479095,30.14177069,149.4,149.35,19.07613357]
[1741275479294,30.14177069,149.41,149.35,49.21790426]
[1741275479531,30.14177069,149.39,149.35,81.3]
[1741275480036,30.14177069,149.38,149.36,0.14216157]
[1741275480201,30.14177069,149.38,149.34,18.64964886]
[1741275480404,30.14177069,149.38,149.35,0.14216157]
[1741275480708,30.14177069,149.42,149.37,0.14216157]
[1741275480907,7.7693,149.53,149.42,18.79181043]
[1741275481115,30.14177069,149.5,149.44,0.14216157]
[1741275481323,30.14177069,149.49,149.44,81.44216157]
[1741275481502,30.14177069,149.48,149.45,0.14216157]
[1741275481823,6.688,149.52,149.45,0.14216157]
[1741275482025,30.14177069,149.51,149.45,50.3384029]
[1741275482227,87.5173,149.54,149.47,0.14216157]
[1741275482524,30.14177069,149.53,149.49,0.14216157]
[1741275482734,0.03,149.54,149.49,48.93358112]
[1741275482937,0.03,149.54,149.5,0.14216157]
[1741275484444,30.17177069,149.54,149.53,312.14216157]
[1741275484607,0.03,149.54,149.53,312.14216157]
[1741275484939,30.17177069,149.54,149.53,312.14216157]
[1741275485439,30.17177069,149.54,149.53,0.14216157]
[1741275485641,36.85887069,149.54,149.53,0.14216157]
[1741275485810,36.85887069,149.54,149.45,18.64964886]
[1741275486012,30.14177069,149.52,149.46,0.14216157]
[1741275486309,30.14177069,149.52,149.48,0.14216157]
[1741275486614,36.82987069,149.52,149.48,0.14216157]
[1741275486822,30.14177069,149.52,149.48,0.14216157]
[1741275487135,0.03,149.54,149.5,0.14216157]
[1741275487434,36.85897069,149.54,149.5,0.14216157]
[1741275487908,6.7172,149.54,149.5,0.14216157]
[1741275488107,30.17177069,149.54,149.5,0.14216157]
[1741275488323,6.7172,149.54,149.53,312.14216157]
[1741275488525,6.7172,149.54,149.53,0.14216157]
[1741275488834,105.64880983,149.54,149.44,18.64964886]
[1741275489033,30.14177069,149.48,149.45,0.14216157]
[1741275489208,80.8,149.53,149.45,0.14216157]
[1741275489408,80.8,149.52,149.45,0.14216157]
[1741275489831,80.8,149.51,149.44,81.3]
[1741275490143,80.8,149.51,149.45,0.14216157]
[1741275490318,30.14177069,149.49,149.45,0.14216157]
[1741275490520,30.14177069,149.48,149.45,0.14216157]
[1741275490837,80.8,149.51,149.41,87.5495]
[1741275490838,30.14177069,149.46,149.41,87.5495]
[1741275491028,80.8,149.49,149.42,18.64964886]
[1741275491211,30.14177069,149.48,149.43,0.14216157]
[1741275491412,6.6889,149.5,149.43,111.58393226]
[1741275491606,30.14177069,149.48,149.46,0.14216157]
[1741275491914,30.14177069,149.47,149.45,312.0]
[1741275492113,80.8,149.49,149.38,6.6942]
[1741275492114,30.14177069,149.46,149.38,99.94964886]
[1741275492442,30.14177069,149.43,149.38,99.94964886]
[1741275492620,30.14177069,149.44,149.38,106.64384886]
[1741275492812,36.83377069,149.43,149.39,0.14216157]
[1741275493014,30.14177069,149.42,149.37,7.64]
[1741275493341,30.14177069,149.41,149.37,0.14216157]
[1741275493522,30.14177069,149.42,149.37,18.79181043]
[1741275494139,30.14177069,149.43,149.37,18.79181043]
[1741275494321,30.14177069,149.44,149.37,48.93358112]
[1741275494643,30.14177069,149.42,149.37,18.79181043]
[1741275495113,36.83427069,149.42,149.41,312.14216157]
[1741275495316,30.14177069,149.43,149.42,0.14216157]
[1741275495512,189.44177069,149.47,149.42,18.79181043]
[1741275495712,30.14177069,149.48,149.42,48.93358112]
[1741275495937,30.14177069,149.49,149.44,18.79181043]
[1741275496454,30.14177069,149.45,149.43,0.14216157]
[1741275496637,30.14177069,149.46,149.43,0.14216157]
[1741275497017,30.14177069,149.46,149.42,0.14216157]
[1741275497217,30.14177069,149.48,149.42,30.5682554]
[1741275497638,30.14177069,149.48,149.42,0.42648471]
[1741275497856,30.14177069,149.47,149.42,0.42648471]
[1741275498248,6.6876,149.53,149.44,0.42648471]
[1741275498444,30.14177069,149.48,149.44,81.44216157]
[1741275498745,30.14177069,149.48,149.47,312.14216157]
[1741275498949,30.14177069,149.5,149.48,0.14216157]
[1741275499127,6.6886,149.51,149.46,0.14216157]
[1741275499128,30.14177069,149.49,149.46,0.14216157]
[1741275499444,6.6886,149.51,149.46,0.14216157]
[1741275499650,30.14177069,149.49,149.46,0.14216157]
[1741275499851,87.4881,149.52,149.48,0.14216157]
[1741275500049,30.14177069,149.51,149.46,18.79181043]
[1741275500235,30.14177069,149.53,149.47,0.28432314]
[1741275500436,30.14177069,149.53,149.48,0.14216157]
[1741275500636,30.14177069,149.52,149.48,0.14216157]
[1741275501026,30.14177069,149.5,149.48,0.14216157]
[1741275501227,30.14177069,149.51,149.48,18.79181043]
[1741275501427,30.14177069,149.53,149.48,25.48151043]
[1741275501628,30.14177069,149.53,149.48,106.78151043]
[1741275501823,30.14177069,149.51,149.48,81.44216157]
[1741275502034,30.14177069,149.5,149.48,81.44216157]
[1741275502250,80.8,149.53,149.46,24.98184886]
[1741275502431,30.14177069,149.5,149.46,24.98184886]
[1741275502634,30.14177069,149.5,149.47,0.14216157]
[1741275502955,30.14177069,149.49,149.47,0.14216157]
[1741275503153,36.83147069,149.49,149.47,0.14216157]
[1741275503456,30.14177069,149.48,149.45,81.3]
[1741275503636,30.14177069,149.49,149.46,0.14216157]
[1741275503837,36.83077069,149.5,149.46,0.14216157]
[1741275504042,30.14177069,149.48,149.46,0.14216157]
[1741275504230,30.14177069,149.48,149.45,0.14216157]
[1741275504629,30.14177069,149.47,149.44,0.14216157]
[1741275505170,80.8,149.51,149.47,0.14216157]
[1741275505334,30.14177069,149.49,149.47,0.14216157]
[1741275505734,6.6889,149.5,149.45,0.14216157]
[1741275505937,87.4877,149.53,149.47,0.14216157]
[1741275506136,30.14177069,149.51,149.47,0.14216157]
[1741275506440,30.14177069,149.5,149.47,0.14216157]
[1741275507953,30.14177069,149.52,149.49,0.14216157]
[1741275508134,0.03,149.54,149.49,0.14216157]
[1741275508335,30.17177069,149.54,149.49,0.14216157]
[1741275508536,30.17177069,149.54,149.53,0.14216157]
[1741275509164,36.85887069,149.54,149.49,0.14216157]
[1741275509359,30.14177069,149.53,149.49,0.14216157]
[1741275509569,30.17177069,149.54,149.49,0.14216157]
[1741275509863,36.85887069,149.54,149.49,0.14216157]
[1741275510046,30.17177069,149.54,149.49,0.14216157]
[1741275510242,0.03,149.54,149.51,0.14216157]
[1741275510558,0.03,149.54,149.53,0.14216157]
[1741275510862,0.03,149.57,149.55,0.14216157]
[1741275511065,30.14177069,149.64,149.57,18.79181043]
[1741275511233,30.14177069,149.64,149.59,0.14216157]
[1741275511435,30.14177069,149.61,149.59,0.14216157]
[1741275511664,30.14177069,149.61,149.55,30.14177069]
[1741275511665,30.14177069,149.61,149.57,0.14216157]
[1741275511956,30.14177069,149.62,149.57,0.14216157]
[1741275512177,30.14177069,149.62,149.61,312.14216157]
[1741275512673,30.14177069,149.63,149.62,0.14216157]
[1741275512839,17.07060026,149.65,149.62,0.14216157]
[1741275513164,30.14177069,149.64,149.62,0.14216157]
[1741275513336,30.14177069,149.63,149.59,0.14216157]
[1741275513743,30.14177069,149.64,149.59,0.14216157]
[1741275514460,30.14177069,149.61,149.58,0.14216157]
[1741275514645,30.14177069,149.62,149.58,0.14216157]
[1741275514961,30.14177069,149.59,149.56,215.8]
[1741275515145,30.14177069,149.59,149.53,18.79181043]
[1741275515337,30.14177069,149.59,149.54,0.14216157]
[1741275515546,6.6831,149.63,149.54,0.14216157]
[1741275515755,30.14177069,149.59,149.54,0.14216157]
[1741275515961,30.14177069,149.59,149.56,312.0]
[1741275516263,30.14177069,149.6,149.57,0.14216157]
[1741275516766,30.14177069,149.58,149.57,0.14216157]
[1741275516966,30.14177069,149.58,149.55,0.14216157]
[1741275517150,30.14177069,149.59,149.55,18.79181043]
[1741275517348,30.14177069,149.6,149.55,18.79181043]
[1741275517839,30.14177069,149.6,149.51,7.62]
[1741275517840,30.14177069,149.6,149.5,92.81236446]
[1741275518043,30.14177069,149.58,149.52,18.64964886]
[1741275518274,30.14177069,149.58,149.53,0.14216157]
[1741275518462,30.14177069,149.59,149.55,0.14216157]
[1741275518652,30.14177069,149.59,149.55,81.72648471]
[1741275518853,30.14177069,149.6,149.55,81.58432314]
[1741275519157,6.6841,149.61,149.55,81.44216157]
[1741275519158,30.14177069,149.58,149.55,81.44216157]
[1741275519345,36.82757069,149.57,149.55,393.44216157]
[1741275519851,36.82757069,149.57,149.55,81.44216157]
[1741275520049,6.6858,149.57,149.55,81.44216157]
[1741275520259,30.14177069,149.58,149.55,81.44216157]
[1741275520550,30.14177069,149.59,149.56,0.14216157]
[1741275520868,30.14177069,149.57,149.56,0.14216157]
[1741275521038,30.14177069,149.57,149.55,81.3]
[1741275521369,6.6867,149.55,149.5,87.5551]
[1741275521566,30.14177069,149.53,149.5,81.3]
[1741275521769,23.4035,149.55,149.51,0.14216157]
[1741275522066,36.82847069,149.55,149.51,0.14216157]
[1741275522271,30.14177069,149.54,149.51,0.14216157]
[1741275522448,6.6867,149.55,149.51,0.14216157]
[1741275522651,6.6867,149.55,149.51,18.79181043]
[1741275522858,6.6867,149.55,149.54,0.14216157]
[1741275523054,6.6859,149.57,149.54,0.14216157]
[1741275523264,110.94177069,149.58,149.54,0.14216157]
[1741275523552,36.82727069,149.58,149.54,0.14216157]
[1741275523748,30.14177069,149.57,149.54,0.14216157]
[1741275523950,30.14177069,149.55,149.51,18.79181043]
[1741275524148,6.6855,149.58,149.51,130.23358112]
[1741275524352,30.14177069,149.58,149.53,18.79181043]
[1741275524574,30.14177069,149.59,149.53,130.23358112]
[1741275524875,36.82617069,149.6,149.53,130.23358112]
[1741275525050,36.82617069,149.6,149.53,131.63743272]
[1741275525370,6.6853,149.58,149.53,136.92108112]
[1741275525761,6.6853,149.58,149.54,0.14216157]
[1741275525945,6.6853,149.58,149.54,81.44216157]
[1741275526348,36.82707069,149.58,149.57,312.14216157]
[1741275526564,30.14177069,149.59,149.58,0.14216157]
[1741275527068,60.28354138,149.59,149.54,81.3]
[1741275527259,30.14177069,149.56,149.52,0.14216157]
[1741275527575,30.14177069,149.57,149.51,119.53443663]
[1741275527746,36.82717069,149.58,149.53,18.64964886]
[1741275527946,36.82717069,149.58,149.53,0.14216157]
[1741275527947,30.14177069,149.57,149.53,0.14216157]
[1741275528449,30.14177069,149.58,149.53,0.14216157]
[1741275528867,36.82677069,149.59,149.53,0.14216157]
[1741275529174,36.82677069,149.59,149.53,81.44216157]
[1741275529875,36.82677069,149.59,149.58,0.14216157]
[1741275530458,36.82677069,149.59,149.53,87.9874]
[1741275530459,36.82677069,149.59,149.54,0.14216157]
[1741275530779,30.14177069,149.56,149.54,0.14216157]
[1741275531077,30.14177069,149.57,149.54,0.14216157]
[1741275531259,30.14177069,149.58,149.54,0.14216157]
[1741275531483,30.14177069,149.57,149.54,0.14216157]
[1741275531644,30.14177069,149.55,149.54,0.14216157]
[1741275532043,30.14177069,149.58,149.54,0.14216157]
[1741275532270,30.14177069,149.59,149.54,81.44216157]
[1741275532456,30.14177069,149.58,149.54,81.44216157]
[1741275532650,23.3956,149.6,149.54,81.44216157]
[1741275532878,30.14177069,149.58,149.54,81.44216157]
[1741275533052,30.14177069,149.59,149.54,88.12926157]
[1741275533249,30.14177069,149.59,149.56,0.14216157]
[1741275533448,80.8,149.61,149.59,0.14216157]
[1741275533449,30.14177069,149.6,149.59,0.14216157]
[1741275533857,30.14177069,149.6,149.57,0.14216157]
[1741275534056,30.14177069,149.59,149.57,0.14216157]
[1741275535068,30.14177069,149.58,149.57,0.14216157]
[1741275535864,30.14177069,149.59,149.57,0.14216157]
[1741275536063,36.82627069,149.6,149.57,0.14216157]
[1741275536283,30.14177069,149.59,149.57,0.14216157]
[1741275536880,30.14177069,149.6,149.59,0.14216157]
[1741275537283,36.82617069,149.6,149.59,0.14216157]
[1741275537778,36.82617069,149.6,149.57,0.14216157]
[1741275537984,30.14177069,149.59,149.57,0.14216157]
[1741275538483,30.14177069,149.6,149.57,0.14216157]
[1741275538695,30.14177069,149.62,149.57,106.77751043]
[1741275539253,30.14177069,149.63,149.57,136.91928112]
[1741275539459,30.14177069,149.62,149.57,106.77751043]
[1741275540382,30.14177069,149.62,149.61,312.14216157]
[1741275540557,30.14177069,149.63,149.62,0.14216157]
[1741275541059,6.6822,149.65,149.58,49.21790426]
[1741275541293,30.14177069,149.66,149.6,48.93358112]
[1741275541600,30.14177069,149.63,149.6,0.14216157]
[1741275541762,30.14177069,149.63,149.58,81.3]
[1741275541763,30.14177069,149.62,149.59,0.14216157]
[1741275541958,30.14177069,149.66,149.58,81.3]
[1741275541959,30.14177069,149.6,149.58,81.3]
[1741275542159,30.14177069,149.6,149.56,6.6862]
[1741275542567,6.6822,149.65,149.57,0.14216157]
[1741275542767,30.14177069,149.62,149.57,0.14216157]
[1741275542970,30.14177069,149.59,149.55,81.3]
[1741275543379,104.1878,149.65,149.55,87.9866]
[1741275543380,30.14177069,149.6,149.55,87.9866]
[1741275543589,0.16518217,149.7,149.63,18.79181043]
[1741275543790,30.30695286,149.7,149.63,48.93358112]
[1741275544087,0.16518217,149.7,149.69,0.14216157]
[1741275544486,0.16518217,149.7,149.64,0.14216157]
[1741275544688,0.16518217,149.7,149.66,0.42648471]
[1741275544863,0.16518217,149.7,149.68,18.79181043]
[1741275545267,0.16518217,149.7,149.68,48.93358112]
[1741275545983,0.16518217,149.7,149.67,18.79181043]
[1741275546586,0.16518217,149.7,149.67,25.47271043]
[1741275546887,0.16518217,149.7,149.69,18.79181043]
[1741275547092,0.16518217,149.7,149.69,48.93358112]
[1741275547470,0.16518217,149.7,149.69,360.93358112]
[1741275547986,0.16518217,149.7,149.69,361.21790426]
[1741275548570,0.16518217,149.7,149.69,367.89830426]
[1741275548775,8.217e-05,149.7,149.69,367.89830426]
[1741275549383,0.13215217,149.72,149.71,45.38171043]
[1741275549671,0.26430434,149.72,149.71,292.72552209]
[1741275549885,0.26430434,149.72,149.71,261.18171043]
[1741275550188,0.26430434,149.72,149.71,291.60780426]
[1741275550491,0.26430434,149.72,149.71,299.20780426]
[1741275550692,0.26430434,149.72,149.71,305.88730426]
[1741275551073,0.21606408,149.72,149.71,305.88730426]
[1741275551386,0.13215217,149.76,149.71,305.88730426]
[1741275551387,80.8,149.88,149.75,20.0]
[1741275551583,10.38830026,149.89,149.85,30.28393226]
[1741275551584,0.06660873,149.86,149.85,30.28393226]
[1741275551967,0.06660873,149.86,149.85,48.93358112]
[1741275552599,0.06660873,149.86,149.85,49.21790426]
[1741275552892,10.38830026,149.89,149.88,39.07613357]
[1741275553080,1.3254883,149.89,149.88,76.81790426]
[1741275553400,1.3254883,149.96,149.89,19.07613357]
[1741275553562,1.3254883,149.96,149.93,0.14216157]
[1741275554093,30.14177069,149.95,149.93,0.14216157]
[1741275554392,30.14177069,149.94,149.89,0.14216157]
[1741275554703,36.81077069,149.95,149.89,30.28393226]
[1741275554869,30.14177069,149.92,149.88,0.14216157]
[1741275555077,30.14177069,149.9,149.85,134.5]
[1741275555393,30.14177069,149.9,149.84,62.38871955]
[1741275555394,1.41370983,149.93,149.83,18.64964886]
[1741275555690,30.14177069,149.89,149.84,0.14216157]
[1741275555902,8.99370983,149.93,149.83,18.64964886]
[1741275556072,30.14177069,149.9,149.83,48.79141955]
[1741275556272,7.58,149.93,149.86,30.28393226]
[1741275556574,7.58,149.93,149.86,0.14216157]
[1741275556891,30.14177069,149.89,149.84,18.79181043]
[1741275557093,6.6702,149.92,149.84,18.79181043]
[1741275557394,6.6688,149.95,149.88,48.93358112]
[1741275557587,30.14177069,149.94,149.9,0.14216157]
[1741275557782,30.14177069,149.93,149.9,0.14216157]
[1741275557979,30.14177069,149.92,149.86,245.94177069]
[1741275558186,23.341,149.95,149.86,245.94177069]
[1741275558187,30.14177069,149.94,149.89,0.14216157]
[1741275558372,36.81057069,149.95,149.89,0.14216157]
[1741275558568,36.81057069,149.95,149.89,30.28393226]
[1741275558893,36.81057069,149.95,149.91,0.14216157]
[1741275559388,30.14177069,149.94,149.91,0.14216157]
[1741275559584,30.14177069,149.94,149.89,0.14216157]
[1741275559783,36.81057069,149.95,149.94,0.14216157]
[1741275560395,0.03,149.96,149.93,0.14216157]
[1741275560607,0.03,149.96,149.95,18.79181043]
[1741275560899,0.03,149.96,149.95,48.93358112]
[1741275562012,30.14177069,149.99,149.96,0.14216157]
[1741275562173,150.11657007,150.0,149.96,0.14216157]
[1741275562875,143.44977007,150.0,149.96,18.79181043]
[1741275563069,143.44977007,150.0,149.99,55.29530426]
[1741275563301,143.44977007,150.0,149.99,590.67530426]
[1741275563302,119.55757548,150.0,149.99,590.67530426]
[1741275563469,116.95935608,150.0,149.99,590.67530426]
[1741275564890,116.95935608,150.0,149.99,448.31098112]
[1741275565097,116.95935608,150.0,149.99,418.16921043]
[1741275565269,116.95935608,150.0,149.99,448.31098112]
[1741275565270,70.55687693,150.0,149.99,448.31098112]
[1741275565670,70.55687693,150.0,149.99,336.86921043]
[1741275565901,77.22347693,150.0,149.99,330.79181043]
[1741275566106,77.22347693,150.0,149.99,312.0]
[1741275566801,70.55687693,150.0,149.97,56.37141955]
[1741275567005,77.22347693,150.0,149.97,26.22964886]
[1741275567206,77.22347693,150.0,149.97,7.58]
[1741275567506,107.36524762,150.0,149.96,81.3]
[1741275567675,107.36524762,150.0,149.97,0.14216157]
[1741275567676,77.22347693,150.0,149.97,0.14216157]
[1741275568082,107.36524762,150.0,149.97,0.14216157]
[1741275568288,107.36524762,150.0,149.96,0.14216157]
[1741275568588,77.22347693,150.0,149.96,18.79181043]
[1741275569109,70.55687693,150.0,149.96,18.79181043]
[1741275569617,70.55687693,150.0,149.98,0.14216157]
[1741275570177,70.55687693,150.0,149.98,18.79181043]
[1741275570409,70.58687693,150.0,149.98,48.93358112]
[1741275570597,70.58687693,150.0,149.97,215.8]
[1741275570808,70.58687693,150.0,149.99,30.28393226]
[1741275571192,70.58687693,150.0,149.99,0.14216157]
[1741275571496,70.55687693,150.0,149.99,30.28393226]
[1741275571803,70.55687693,150.0,149.99,0.14216157]
[1741275572595,70.55687693,150.0,149.99,49.21790426]
[1741275572794,70.55687693,150.0,149.99,279.24500426]
[1741275573207,52.61501904,150.0,149.99,554.43613357]
[1741275573515,52.61501904,150.0,149.99,591.24500426]
[1741275573887,52.61501904,150.0,149.99,603.11053395]
[1741275574100,42.74104206,150.0,149.99,603.11053395]
[1741275574486,42.74104206,150.0,149.99,561.10323357]
[1741275574694,42.74104206,150.0,149.99,591.24500426]
[1741275575506,42.74104206,150.0,149.99,560.81891043]
[1741275575700,0.04000004,150.05,149.99,591.24500426]
[1741275575903,0.14866395,150.01,150.0,18.79181043]
[1741275576116,0.14866395,150.01,150.0,266.13313411]
[1741275576404,0.14866395,150.01,150.0,295.15967495]
[1741275576595,6.395e-05,150.01,150.0,295.15967495]
[1741275577312,0.11896232,150.03,150.02,39.07613357]
[1741275577529,0.09515115,150.04,150.03,19.07613357]
[1741275577817,0.11612119,150.05,150.04,0.14216157]
[1741275577993,0.19224234,150.05,150.04,50.61669517]
[1741275578195,0.70847147,150.2,150.08,20.14216157]
[1741275578505,30.14177069,150.16,150.12,0.14216157]
[1741275578690,30.14177069,150.15,150.12,0.14216157]
[1741275578893,23.3047,150.19,150.15,0.14216157]
[1741275579291,7.74687724,150.2,150.15,0.14216157]
[1741275579721,24.39127724,150.2,150.15,0.14216157]
[1741275579916,30.14177069,150.18,150.15,0.14216157]
[1741275580120,7.74687724,150.2,150.15,0.14216157]
[1741275580121,30.14177069,150.19,150.15,0.14216157]
[1741275580293,1.08907724,150.2,150.15,164.64177069]
[1741275580494,1.08907724,150.2,150.16,0.14216157]
[1741275580695,1.08907724,150.2,150.18,0.14216157]
[1741275580917,1.08907724,150.2,150.19,50.61571992]
[1741275581528,1.08907724,150.2,150.19,273.07391992]
[1741275581820,1.08907724,150.2,150.19,271.67610426]
[1741275581999,1.08907724,150.2,150.19,241.53433357]
[1741275582203,1e-08,150.2,150.19,0.14216157]
[1741275582594,1e-08,150.2,150.15,48.79141955]
[1741275582798,30.14177069,150.19,150.13,30.14177069]
[1741275583024,30.14177069,150.15,150.1,134.5]
[1741275583204,30.14177069,150.16,150.11,312.0]
[1741275584299,30.14177069,150.15,150.09,111.44177069]
[1741275584502,30.14177069,150.14,150.08,142.06]
[1741275584722,30.14177069,150.13,150.08,142.06]
[1741275584909,30.14177069,150.14,150.08,142.06]
[1741275585318,36.80247069,150.14,150.08,142.06]
[1741275585520,30.14177069,150.13,150.08,142.06]
[1741275586018,30.14177069,150.13,150.07,6.2117]
[1741275586215,30.14177069,150.11,150.06,134.5]
[1741275586394,30.14177069,150.11,150.05,81.3]
[1741275586395,30.14177069,150.12,150.05,245.94177069]
[1741275586593,30.14177069,150.12,150.06,30.14177069]
[1741275587213,30.14177069,150.11,150.09,312.0]
[1741275587522,30.14177069,150.12,150.09,312.0]
[1741275587726,30.14177069,150.13,150.1,0.14216157]
[1741275587930,30.14177069,150.11,150.05,81.3]
[1741275588095,6.66,150.15,150.06,30.14177069]
[1741275588301,30.14177069,150.13,150.07,30.28393226]
[1741275588511,30.14177069,150.13,150.07,0.14216157]
[1741275588712,30.14177069,150.11,150.05,215.8]
[1741275589004,31.68667069,150.15,150.08,30.28393226]
[1741275589005,1.5449,150.15,150.08,30.28393226]
[1741275589225,31.68667069,150.15,150.1,0.14216157]
[1741275589526,30.14177069,150.17,150.11,0.14216157]
[1741275589911,30.14177069,150.16,150.1,0.14216157]
[1741275590107,3.07020984,150.2,150.12,0.14216157]
[1741275590427,31.7982707,150.2,150.15,0.14216157]
[1741275590803,31.7982707,150.2,150.17,0.14216157]
[1741275591512,30.1417707,150.2,150.14,30.28393226]
[1741275592110,30.14177069,150.19,150.14,0.14216157]
[1741275593026,30.1417707,150.2,150.14,0.14216157]
[1741275593421,30.14177069,150.17,150.14,0.14216157]
[1741275593729,30.14177069,150.18,150.14,0.14216157]
[1741275594230,30.14177069,150.17,150.14,0.14216157]
[1741275594426,6.6573,150.21,150.16,312.0]
[1741275594634,188.82177069,150.22,150.17,0.14216157]
[1741275594817,30.14177069,150.2,150.14,0.14216157]
[1741275595018,30.14177069,150.19,150.14,0.14216157]
[1741275595814,30.14177069,150.2,150.14,0.14216157]
[1741275596136,30.14177069,150.19,150.14,0.14216157]
[1741275596514,30.14177069,150.2,150.14,0.14216157]
[1741275596913,30.14177069,150.18,150.14,0.14216157]
[1741275597113,195.47877069,150.22,150.14,0.14216157]
[1741275597438,30.14177069,150.2,150.14,30.28393226]
[1741275597605,158.68,150.22,150.12,134.5]
[1741275597606,30.14177069,150.19,150.13,18.79181043]
[1741275597807,30.14177069,150.2,150.18,0.14216157]
[1741275598329,30.14177069,150.19,150.13,134.5]
[1741275598633,165.3371,150.22,150.14,0.14216157]
[1741275598933,30.14177069,150.19,150.14,0.14216157]
[1741275599625,30.14177069,150.17,150.13,0.14216157]
[1741275599820,30.14177069,150.16,150.13,0.14216157]
[1741275600134,30.14177069,150.16,150.1,118.13667069]
[1741275600332,30.14177069,150.13,150.1,0.033]
[1741275600531,30.14177069,150.14,150.1,0.033]
[1741275600710,26.71430983,150.21,150.1,0.033]
[1741275600711,30.14177069,150.15,150.1,0.033]
[1741275600910,15.63100983,150.21,150.12,0.14216157]
[1741275601112,30.14177069,150.16,150.12,0.14216157]
[1741275601311,30.14177069,150.15,150.13,312.0]
[1741275601620,30.14177069,150.16,150.13,312.0]
[1741275601915,30.14177069,150.15,150.14,0.14216157]
[1741275602230,30.14177069,150.15,150.13,312.0]
[1741275602437,30.14177069,150.14,150.13,312.0]
[1741275602815,30.14177069,150.14,150.1,0.033]
[1741275603012,30.14177069,150.11,150.1,0.033]
[1741275603733,1.41370983,150.14,150.1,0.033]